[Event "German Bundesliga 2022-23"]
[Site "Germany"]
[Date "2002.01.09"]
[Round "4"]
[White "Neiksans, Arturs"]
[Black "Bogosavljevic, Boban"]
[Result "1-0"]
[ECO "B31"]
[WhiteElo "2599"]
[BlackElo "2521"]
[Annotator "TA"]
[PlyCount "95"]
[EventDate "2022.10.21"]
[EventType "team-tourn"]
[EventCountry "GER"]
[SourceTitle "playchess.com"]
[Source "ChessBase"]
[SourceQuality "1"]
[TimeControl "40/6000+30:3000+30"]

{[%evp 10,95,24,22,21,27,22,20,53,51,54,58,65,37,76,74,110,118,117,104,133,111,107,112,94,0,0,0,0,-46,0,0,0,0,0,0,0,0,0,0,0,0,0,0,0,0,0,0,0,0,0,0,0,0,0,0,0,0,0,0,0,0,11,11,11,11,11,11,11,0,0,0,146,167,151,160,120,0,672,628,835,848,826,710,29948,29950,11945,-29960]} 1. e4 {[%emt 0:01:00]} c5 {[%emt 0:01:00]} 2. Nf3 {[%emt 0:00:00]} Nc6 {[%emt 0:00:00]} 3. Bb5 {[%emt 0:00:00]} g6 {[%emt 0:01:00]} 4. Bxc6 {[%emt 0:01:30]} dxc6 {[%emt 0:00:00]} 5. d3 {[%emt 0:00:00]} Bg7 {[%emt 0:00:00]} 6. h3 {[%emt 0:00:00]} b6 {[%emt 0:03:30] B31: Sicilian: 2...Nc6 3 Bb5 g6.} 7. O-O $5 {[%emt 0:02:30][%mdl 4] Exploring less charted territory.} e5 {[%emt 0:01:30]} 8. a3 {[%emt 0:10:30] [#]} a5 $146 {[%emt 0:07:30] The position is equal.} ({Predecessor:} 8... Qc7 9. b4 cxb4 10. axb4 Nf6 11. Bb2 Nd7 12. Nbd2 O-O 13. Nc4 b5 14. Ne3 Nb6 15. c4 {1-0 (31) Glek,I (2600)-Reinderman,D (2440) Netherlands 1995}) 9. Be3 {[%emt 0:06:30]} Ne7 {[%emt 0:00:30]} 10. Nbd2 {[%emt 0:02:30][%cal Ob2b4,Bb1d2,Bd2c4,Bc4e5][%mdl 32]} a4 {[%emt 0:03:30]} 11. Nc4 {[%emt 0:05:30]} O-O {[%emt 1:02:30]} 12. Ncxe5 {[%emt 0:28:30]} ({Don't play} 12. Nfxe5 b5 $17) 12... h6 {[%emt 0:04:30]} 13. Bd2 {[%emt 0:11:30] White is more active.} g5 {[%emt 0:02:50]} 14. Bc3 {[%emt 0:01:30]} Be6 {[%emt 0:04:07]} 15. Ng4 {[%emt 0:02:30] Nf6+ is the strong threat. Pair of Knights!} Ng6 {[%emt 0:00:13]} 16. Bxg7 {[%emt 0:18:06]} Kxg7 {[%emt 0:00:06]} 17. e5 {[%emt 0:00:10]} ({White should play} 17. Nfh2 $16) 17... Bxg4 $11 {[%emt 0:01:33]} 18. hxg4 {[%emt 0:00:04]} Qd7 {[%emt 0:00:50]} 19. Nh2 {[%emt 0:02:57]} (19. e6 $11 Qxe6 20. Nd2) 19... Nxe5 {[%emt 0:02:11]} (19... Rfe8 $15 {is superior.}) 20. Re1 {[%emt 0:00:07]} Rfe8 {[%emt 0:01:23]} 21. Re4 {[%emt 0:01:31]} Ng6 {[%emt 0:03:59]} 22. Nf1 {[%emt 0:01:16]} Rxe4 {[%emt 0:01:27]} 23. dxe4 {[%emt 0:00:07]} Rd8 {[%emt 0:00:05]} 24. Ne3 {[%emt 0:04:19]} Qxd1+ {[%emt 0:04:32]} 25. Rxd1 {[%emt 0:00:03]} Rxd1+ {[%emt 0:00:04]} 26. Nxd1 {[%emt 0:00:04][%mdl 4096] Endgame KN-KN} Ne5 {[%emt 0:00:04]} 27. Ne3 {[%emt 0:00:17] Inhibits Nc4.} b5 {[%emt 0:00:11]} 28. Kf1 {[%emt 0:00:18]} Kf6 {[%emt 0:03:12]} 29. Ke2 {[%emt 0:00:07]} Ke6 {[%emt 0:00:25]} 30. Kd2 {[%emt 0:00:39]} c4 {[%emt 0:00:50] Inhibits b3.} 31. f3 {[%emt 0:01:08]} f6 {[%emt 0:00:19]} 32. Nf5 {[%emt 0:01:24]} c5 {[%emt 0:01:08]} 33. Kc3 {[%emt 0:04:54]} Ng6 {[%emt 0:00:18]} 34. Ne3 {[%emt 0:03:10]} ({Much worse is} 34. Nxh6 Nh4 35. Nf5 Nxg2 $17) 34... Nf4 {[%emt 0:00:28]} 35. Kd2 {[%emt 0:00:31]} Ke5 {[%emt 0:01:42]} 36. g3 {[%emt 0:00:25]} Ne6 {[%emt 0:00:09]} 37. c3 {[%emt 0:00:09] Against Nd4. Threatens to win with Nf5.} Nd8 $1 {[%emt 0:00:52]} 38. Nd5 {[%emt 0:01:21]} Nc6 {[%emt 0:00:30]} 39. Ke3 {[%emt 0:00:25]} Ke6 {[%emt 0:00:27]} 40. f4 {[%emt 0:01:02]} Kf7 {[%emt 0:00:33]} (40... Ne7 $11 {keeps the balance.}) 41. Nc7 $16 {[%emt 0:02:26]} Ke7 {[%emt 0:06:02]} 42. Nxb5 {[%emt 0:11:30]} Kd7 {[%emt 0:02:30] Against Nc7} 43. Kf3 {[%emt 0:00:00]} (43. e5 $1 $16 {[%cal Re5f6]} fxe5 44. f5) 43... Nd8 $2 {[%emt 0:08:30][%mdl 8192] [#]} (43... Ne7 $11) 44. e5 $1 $18 {[%emt 0:01:00]} fxe5 {[%emt 0:01:30]} 45. fxe5 {[%emt 0:00:30]} Kc6 {[%emt 0:01:30] [#]} 46. Ke4 $1 {[%emt 0:06:30]} Kxb5 {[%emt 0:07:30]} (46... Ne6 47. Nd6) 47. Kd5 {[%emt 0:00:30]} Nc6 {[%emt 0:01:30]} 48. Ke4 $4 {[%mdl 40960] Black used his chance.   Weighted Error Value: White=0.10 (very precise) /Black=0.46. Sensor Board Error (Ke4/e5)?} (48. Kd6 $18 Na7 49. e6) 1-0

[Event "German Bundesliga 2022-23"]
[Site "Germany"]
[Date "2002.01.09"]
[Round "4"]
[White "Moiseenko, Alexander"]
[Black "Delchev, Aleksander"]
[Result "1-0"]
[ECO "D25"]
[WhiteElo "2582"]
[BlackElo "2497"]
[Annotator "TA"]
[PlyCount "231"]
[EventDate "2022.10.21"]
[EventType "team-tourn"]
[EventCountry "GER"]
[SourceTitle "playchess.com"]
[Source "ChessBase"]
[SourceQuality "1"]
[TimeControl "40/6000+30:3000+30"]

{[%evp 94,231,1931,1204,1116,600,29962,29963,29963,29964,29960,8,8,8,8,8,8,8,8,8,8,8,8,8,8,8,8,8,8,8,8,8,29975,8,8,8,8,8,8,8,8,8,8,8,8,8,8,8,8,8,8,8,8,8,8,8,8,8,8,8,8,8,8,8,8,8,8,8,8,8,8,8,8,8,8,8,8,8,8,8,8,8,8,8,8,8,8,8,8,8,8,8,8,8,8,8,8,8,8,8,8,8,8,8,8,8,8,8,8,8,8,8,8,8,8,8,8,0,8,0,8,0,8,8,8,8,8,8,8,8,8,0,8,8,8,0,0,0,8,0]} 1. d4 {[%emt 0:01:00]} d5 {[%emt 0:03:00]} 2. c4 {[%emt 0:00:00]} dxc4 {[%emt 0:00:00]} 3. Nf3 {[%emt 0:01:00]} Nf6 {[%emt 0:00:00]} 4. e3 {[%emt 0:00:30]} Bg4 {[%emt 0:00:30]} 5. Bxc4 {[%emt 0:00:30]} e6 {[%emt 0:00:00]} 6. h3 {[%emt 0:01:30]} Bh5 {[%emt 0:00:00]} 7. Nc3 {[%emt 0:01:30]} c5 {[%emt 0:00:00]} 8. g4 {[%emt 0:10:30]} Bg6 {[%emt 0:05:00]} 9. h4 {[%emt 0:26:30]} cxd4 {[%emt 0:27:30]} 10. exd4 {[%emt 0:18:30]} Bb4 {[%emt 0:04:30]} 11. h5 {[%emt 0:05:30]} Be4 {[%emt 0:00:30]} 12. g5 {[%emt 0:01:30]} Nd5 {[%emt 0:02:30]} 13. Bd2 {[%emt 0:01:30]} Bxc3 {[%emt 0:12:30]} 14. bxc3 {[%emt 0:00:30]} Nb6 {[%emt 0:05:30]} 15. Be2 {[%emt 0:03:30]} Nc6 {[%emt 0:01:30]} 16. Rh4 {[%emt 0:05:30]} Bd5 {[%emt 0:00:30]} 17. h6 {[%emt 0:05:30]} g6 {[%emt 0:01:30]} 18. Nh2 {[%emt 0:00:00]} f5 {[%emt 0:02:30]} 19. gxf6 {[%emt 0:05:39]} Qxf6 {[%emt 0:02:30]} 20. Rh3 {[%emt 0:01:28]} O-O {[%emt 0:06:30]} 21. Ng4 {[%emt 0:00:34]} Qf5 {[%emt 0:00:30]} 22. Bd3 {[%emt 0:11:26]} Be4 {[%emt 0:00:00]} 23. Bxe4 {[%emt 0:00:53]} Qxe4+ {[%emt 0:00:00]} 24. Qe2 {[%emt 0:00:02]} Qxe2+ {[%emt 0:11:30]} 25. Kxe2 {[%emt 0:00:11]} Nd5 {[%emt 0:00:30]} 26. Rb1 {[%emt 0:01:01]} b6 {[%emt 0:00:30]} 27. Kd3 {[%emt 0:02:06]} Rf5 {[%emt 0:05:48]} 28. Re1 {[%emt 0:00:58]} Kf7 {[%emt 0:00:04]} 29. Rg3 Rd8 {[%emt 0:06:28]} 30. a4 {[%emt 0:01:49]} Nf6 {[%emt 0:05:09]} 31. Nxf6 {[%emt 0:00:44]} Kxf6 {[%emt 0:00:02]} 32. f4 {[%emt 0:00:27]} Rh5 {[%emt 0:04:15]} 33. Rge3 {[%emt 0:01:57]} Rd6 {[%emt 0:00:08]} 34. Bc1 {[%emt 0:00:01]} Na5 {[%emt 0:02:27]} 35. c4 {[%emt 0:01:01]} Rh2 {[%emt 0:02:04]} 36. Ba3 {[%emt 0:01:08]} Rc6 {[%emt 0:00:03]} 37. d5 {[%emt 0:00:12]} Rxc4 {[%emt 0:00:26]} 38. Rxe6+ {[%emt 0:00:35]} Kf5 {[%emt 0:00:01]} 39. R6e5+ {[%emt 0:00:29]} Kg4 {[%emt 0:01:03]} 40. Rg5+ {[%emt 0:01:33]} Kxf4 {[%emt 0:00:00]} 41. Bd6+ {[%emt 0:06:46]} Kxg5 {[%emt 0:02:32]} 42. Bxh2 {[%emt 0:00:00]} Rxa4 {[%emt 0:05:30]} 43. d6 {[%emt 0:08:00]} Nb7 {[%emt 0:06:30]} 44. Re7 {[%emt 0:01:30]} Nc5+ {[%emt 0:19:30]} 45. Kc3 {[%emt 0:07:30]} Kxh6 {[%emt 0:01:34]} 46. Bg1 {[%emt 0:01:30]} g5 {[%emt 0:02:38]} 47. Bxc5 {[%emt 0:06:30]} bxc5 {[%emt 0:00:03]} 48. Re2 {[%emt 0:00:00]} Ra3+ {[%emt 0:05:08]} 49. Kc4 {[%emt 0:03:00]} Ra4+ {[%emt 0:00:03]} 50. Kxc5 {[%emt 0:00:30]} Ra1 {[%emt 0:00:03]} 51. Re4 $1 {[%emt 0:06:35]} Rc1+ {[%emt 0:03:25] [#]} 52. Kd5 $2 {[%emt 0:02:50]} (52. Rc4 $1 Rf1 53. d7 Rf8 54. Kd6 Kh5 55. Rc8 Rf2 56. d8=Q Rd2+ 57. Ke5 Rxd8 58. Rxd8) 52... Rc8 $1 $11 {[%emt 0:00:01]} (52... Rd1+ $2 53. Rd4 Rf1 54. d7 $18) 53. d7 {[%emt 0:00:07]} Rd8 {[%emt 0:00:02]} 54. Kd6 {[%emt 0:03:08]} Kg6 {[%emt 0:00:04]} 55. Re8 {[%emt 0:01:13]} Rxd7+ $1 {[%emt 0:00:03]} 56. Kxd7 {[%emt 0:00:01]} Kf5 $1 {[%emt 0:00:10]} 57. Kd6 {[%emt 0:00:50]} h5 {[%emt 0:00:37]} 58. Kd5 {[%emt 0:00:41]} Kf4 {[%emt 0:08:15]} 59. Kd4 {[%emt 0:01:10]} h4 {[%emt 0:00:33]} 60. Re4+ {[%emt 0:08:27]} Kf3 {[%emt 0:00:48]} 61. Re3+ {[%emt 0:00:02]} Kf2 {[%emt 0:01:02]} 62. Ke4 {[%emt 0:00:10]} g4 $2 {[%emt 0:00:50][%mdl 8192] [#]} (62... a5 $11) 63. Ra3 $2 {[%emt 0:00:18]} (63. Rd3 $1 {mates} g3 64. Rd2+ Ke1 65. Ke3 h3 66. Ra2 Kd1 67. Kf3 g2 68. Kf2 (68. Rxa7 g1=N+ 69. Kf2 h2 $14)) 63... h3 $11 {[%emt 0:03:57]} 64. Kf4 $1 {[%emt 0:00:18]} h2 {[%emt 0:00:03]} 65. Ra2+ {[%emt 0:00:20]} Kg1 {[%emt 0:00:02]} 66. Kg3 $1 {[%emt 0:00:36]} h1=N+ {[%emt 0:00:03]} 67. Kxg4 {[%emt 0:00:00]} Nf2+ {[%emt 0:00:25]} 68. Kf3 {[%emt 0:00:09]} Nd3 {[%emt 0:00:13]} 69. Ke3 {[%emt 0:02:41]} Ne5 {[%emt 0:01:31]} 70. Rxa7 {[%emt 0:00:04]} Ng4+ {[%emt 0:00:34]} 71. Kf4 {[%emt 0:00:06]} Nh2 {[%emt 0:00:05]} 72. Ra1+ {[%emt 0:00:34]} Kg2 {[%emt 0:00:15]} (72... Nf1 {gets mated.} 73. Kf3 Kh1 74. Rxf1+ Kh2 75. Ra1 Kh3 76. Rh1#) 73. Ra2+ {[%emt 0:00:02]} Kg1 {[%emt 0:01:46]} 74. Kg3 {[%emt 0:00:23]} Nf1+ {[%emt 0:00:05]} 75. Kh3 {[%emt 0:00:03]} Ne3 {[%emt 0:00:02]} 76. Re2 {[%emt 0:00:09]} Nf1 {[%emt 0:00:03]} 77. Rg2+ {[%emt 0:00:12]} Kh1 {[%emt 0:00:03]} 78. Rg8 {[%emt 0:00:11]} Nd2 $1 {[%emt 0:01:18]} 79. Kg3 $1 {[%emt 0:01:54]} Kg1 $1 {[%emt 0:00:18]} 80. Rf8 {[%emt 0:00:18]} Nf1+ {[%emt 0:00:51]} 81. Kf3 {[%emt 0:00:09]} (81. Rxf1+ {simplifies} Kxf1 82. Kf4 Kg1 83. Kf5) 81... Nh2+ {[%emt 0:00:29]} 82. Ke2 $1 {[%emt 0:00:08]} Kg2 $1 {[%emt 0:00:00]} 83. Rg8+ {[%emt 0:00:01]} Kh3 $1 {[%emt 0:00:14]} (83... Kh1 {leads to mate.} 84. Kf2) 84. Kf2 {[%emt 0:00:04]} Ng4+ {[%emt 0:00:06]} 85. Kf3 {[%emt 0:00:02]} Ne5+ {[%emt 0:00:00]} 86. Kf4 {[%emt 0:00:11]} Nd3+ {[%emt 0:03:12]} 87. Ke4 {[%emt 0:00:11]} Ne1 {[%emt 0:00:26]} 88. Rg1 {[%emt 0:02:35]} Ng2 $1 {[%emt 0:00:04]} 89. Kf3 {[%emt 0:00:03]} Nh4+ {[%emt 0:00:06]} 90. Kf2 {[%emt 0:00:04]} Nf5 {[%emt 0:00:03]} 91. Rg5 {[%emt 0:00:05]} Nh4 {[%emt 0:01:04]} 92. Rg3+ $1 {[%emt 0:00:05]} Kh2 {[%emt 0:00:02]} 93. Ra3 {[%emt 0:00:09]} Nf5 {[%emt 0:00:03]} 94. Kf3 {[%emt 0:00:27]} Nh4+ $1 {[%emt 0:00:20]} 95. Kg4 {[%emt 0:00:08]} Ng2 $1 {[%emt 0:00:03]} 96. Rh3+ {[%emt 0:00:39]} Kg1 {[%emt 0:00:04]} 97. Kf3 {[%emt 0:00:08]} Ne1+ {[%emt 0:00:02]} 98. Ke2 {[%emt 0:00:09]} Ng2 $1 {[%emt 0:00:31]} 99. Rh8 {[%emt 0:00:15]} Nf4+ {[%emt 0:00:02]} 100. Kf3 {[%emt 0:00:05]} Nd3 {[%emt 0:00:19]} 101. Rf8 {[%emt 0:02:09]} Ne1+ {[%emt 0:02:44]} 102. Ke2 {[%emt 0:00:00]} Ng2 $1 {[%emt 0:00:26]} 103. Rf3 {[%emt 0:00:34]} Kh2 {[%emt 0:00:15]} 104. Kf2 {[%emt 0:00:19]} Nh4 {[%emt 0:00:03]} 105. Ra3 {[%emt 0:00:42]} Ng2 {[%emt 0:00:39]} 106. Kf3 {[%emt 0:01:57]} Ne1+ {[%emt 0:02:16]} 107. Kg4 {[%emt 0:00:21]} Kg2 {[%emt 0:00:59]} 108. Ra2+ $1 {[%emt 0:00:09]} Kf1 {[%emt 0:00:04]} 109. Rd2 {[%emt 0:00:14]} Kg1 {[%emt 0:01:03]} (109... Ng2 {simplifies} 110. Rxg2 Kxg2 111. Kg5 Kf2) 110. Kf4 {[%emt 0:00:31]} Kf1 {[%emt 0:00:21]} 111. Ke3 {[%emt 0:00:12]} Ng2+ $1 {[%emt 0:00:05]} 112. Kf3 {[%emt 0:00:06]} Ne1+ {[%emt 0:00:04]} 113. Kg3 {[%emt 0:00:07]} Kg1 {[%emt 0:00:04]} 114. Rf2 {[%emt 0:00:14]} Nd3 {[%emt 0:00:10]} 115. Rf7 {[%emt 0:00:12]} Ne1 {[%emt 0:00:11]} 116. Rf8 {[%emt 0:00:06]} 1-0

[Event "German Bundesliga 2022-23"]
[Site "Germany"]
[Date "2002.01.09"]
[Round "4"]
[White "Martinovic, Sasa"]
[Black "L'Ami, Erwin"]
[Result "0-1"]
[ECO "D35"]
[WhiteElo "2557"]
[BlackElo "2621"]
[Annotator "TA"]
[PlyCount "96"]
[EventDate "2022.10.21"]
[EventType "team-tourn"]
[EventCountry "GER"]
[SourceTitle "playchess.com"]
[Source "ChessBase"]
[SourceQuality "1"]
[TimeControl "40/6000+30:3000+30"]

{[%evp 18,96,33,30,30,18,33,29,51,52,49,50,52,49,55,24,25,38,41,41,53,23,24,0,0,-12,-13,-15,0,0,0,0,0,0,0,0,0,-4,-4,-4,-4,-104,-104,-104,-100,-104,-104,-132,-10,-10,-10,-10,-10,-286,-289,-308,-347,-327,-316,-316,-301,-899,-871,-955,-1068,-1045,-1054,-1120,-790,-1118,-952,-993,-894,-1380,-1220,-1103,-1141,-5297,-2714,-1633,-843]} 1. d4 {[%emt 0:01:00]} Nf6 {[%emt 0:01:00]} 2. c4 {[%emt 0:00:00]} e6 {[%emt 0:00:30]} 3. Nc3 {[%emt 0:00:00]} d5 {[%emt 0:00:30]} 4. cxd5 {[%emt 0:00:00]} exd5 {[%emt 0:00:30]} 5. Bg5 {[%emt 0:00:00]} c6 {[%emt 0:01:30]} 6. e3 {[%emt 0:00:30]} Bf5 {[%emt 0:00:30]} 7. Qf3 {[%emt 0:00:00]} Bg6 {[%emt 0:00:30]} 8. Bxf6 {[%emt 0:00:00]} Qxf6 {[%emt 0:00:30]} 9. Qxf6 {[%emt 0:00:00]} gxf6 {[%emt 0:00:00]} 10. Nf3 {[%emt 0:00:00]} Nd7 {[%emt 0:06:00] D35: Queen's Gambit Declined: Exchange Variation.} 11. Nh4 {[%emt 0:00:30]} Be7 {[%emt 0:02:30] [#]} 12. Ne2 $146 {[%emt 0:00:30]} ({Predecessor:} 12. g3 Nb6 13. O-O-O Nc8 14. Bd3 Nd6 15. f3 Bxd3 16. Rxd3 f5 17. Ng2 Bg5 18. Kc2 {½-½ (18) Yermolinsky,A (2625)-Azmaiparashvili,Z (2655) Elista 1998}) 12... f5 {[%emt 0:00:30] White has an edge.} 13. g3 {[%emt 0:01:30]} Bxh4 {[%emt 0:01:30]} 14. gxh4 {[%emt 0:00:00]} Nf6 {[%emt 0:00:00]} 15. Nf4 {[%emt 0:02:00]} Nh5 {[%emt 0:00:00]} 16. Bd3 {[%emt 0:13:30]} Nxf4 {[%emt 0:04:30]} 17. exf4 {[%emt 0:00:00]} Kd7 {[%emt 0:04:30]} 18. Kd2 {[%emt 0:00:00]} Rhe8 {[%emt 0:03:30]} 19. Rac1 {[%emt 0:05:30]} a5 {[%emt 0:03:30]} 20. Rc3 {[%emt 0:07:30]} Kd6 {[%emt 0:02:30]} 21. a3 {[%emt 0:02:30]} Bh5 {[%emt 0:08:30]} 22. Rg1 {[%emt 0:07:30]} h6 {[%emt 0:00:30]} 23. Rcc1 {[%emt 0:10:30]} (23. Bxf5 $2 {loses.} Re2+ 24. Kc1 Rxf2 $19) 23... Re6 {[%emt 0:08:30]} 24. Rce1 {[%emt 0:06:30]} Rxe1 {[%emt 0:01:30]} 25. Kxe1 $11 {[%emt 0:00:30][%mdl 4096] Endgame KRB-KRB} b6 {[%emt 0:04:30]} 26. Kd2 {[%emt 0:00:30]} Re8 {[%emt 0:02:30]} 27. Re1 {[%emt 0:15:30] Against c5} Rxe1 {[%emt 0:03:30]} 28. Kxe1 {[%emt 0:00:30] KB-KB} c5 {[%emt 0:02:30]} 29. Bxf5 {[%emt 0:12:30]} (29. Bb5 $11 {keeps the balance.}) 29... cxd4 $17 {[%emt 0:02:30]} 30. Kd2 {[%emt 0:14:25]} Kc5 {[%emt 0:01:30] Inhibits b4+.} 31. b3 {[%emt 0:05:04]} Bf3 {[%emt 0:05:30]} 32. Bd3 {[%emt 0:00:25]} Be4 {[%emt 0:03:30]} (32... b5 $17) 33. Be2 $1 $11 {[%emt 0:02:45]} b5 {[%emt 0:06:30][%cal Bb6b5,Bb5b4][%mdl 32]} 34. Bh5 $1 {[%emt 0:00:37]} f6 {[%emt 0:00:30]} (34... b4 $5 35. a4 $8 f6 $11) 35. Be8 $2 {[%emt 0:02:51][%mdl 8192] This move loses the game for White.} (35. Be2 $11 {and White is okay.}) 35... Bb1 $1 $19 {[%emt 0:03:30]} 36. Kc1 {[%emt 0:00:18] [#] Inhibits b4.} Bf5 {[%emt 0:00:30]} 37. Kd2 {[%emt 0:00:09]} b4 {[%emt 0:00:30]} 38. a4 {[%emt 0:01:03] [#]} d3 $1 {[%emt 0:05:30]} 39. Bb5 $2 {[%emt 0:02:33]} (39. h5 Bg4 40. Bf7) 39... Kd4 {[%emt 0:01:30] Black is clearly winning.} 40. Ba6 {[%emt 0:00:44]} Bg4 {[%emt 0:00:00]} 41. Bb5 {[%emt 0:04:06]} Ke4 {[%emt 0:13:00]} 42. Bxd3+ {[%emt 0:07:30]} Kxf4 {[%emt 0:00:30]} 43. Bf1 {[%emt 0:00:30]} Bf5 {[%emt 0:02:30] ...Kf3 is the strong threat.} 44. Be2 {[%emt 0:00:30]} d4 {[%emt 0:00:30][%cal Bd5d4,Bd4d3][%mdl 32] Strongly threatening ...Be4.} 45. Bd1 {[%emt 0:03:30]} d3 {[%emt 0:03:30]} 46. Bh5 {[%emt 0:01:30]} Be6 {[%emt 0:00:30]} 47. Bd1 {[%emt 0:00:30]} Ke4 {[%emt 0:00:30]} 48. Kc1 {[%emt 0:02:30]} Ke5 {[%emt 0:00:30] Weighted Error Value: White=0.69/Black=0.06 (flawless)} 0-1

[Event "German Bundesliga 2022-23"]
[Site "Germany"]
[Date "2002.01.09"]
[Round "4"]
[White "Handke, Florian"]
[Black "Yankelevich, Lev"]
[Result "1-0"]
[ECO "C84"]
[WhiteElo "2536"]
[BlackElo "2481"]
[Annotator "TA"]
[PlyCount "137"]
[EventDate "2022.10.21"]
[EventType "team-tourn"]
[EventCountry "GER"]
[SourceTitle "playchess.com"]
[Source "ChessBase"]
[SourceQuality "1"]
[TimeControl "40/6000+30:3000+30"]

{[%evp 15,137,13,18,12,19,2,18,0,20,10,10,3,54,47,38,62,53,38,116,97,111,111,195,194,236,214,270,252,274,191,175,73,64,67,79,75,89,58,60,61,78,72,72,47,63,0,54,37,44,46,46,47,62,65,119,70,113,136,135,125,125,96,130,137,218,207,217,214,207,207,431,422,535,535,523,495,444,450,623,591,583,578,829,538,1157,1033,6541,6534,6534,5405,29969,29970,29968,29968,29968,29972,29969,29969,29974,29975,29974,29975,29978,29979,29980,29979,29979,29980,29980,29981,29983,29984,29985,29986,29987,29986,29988,29989,29989,29990,29990,29991,29991,29992]} 1. e4 {[%emt 0:01:00]} e5 {[%emt 0:01:00]} 2. Nf3 {[%emt 0:00:00]} Nc6 {[%emt 0:00:00]} 3. Bb5 {[%emt 0:00:00]} a6 {[%emt 0:00:00]} 4. Ba4 {[%emt 0:00:00]} Nf6 {[%emt 0:00:30]} 5. O-O {[%emt 0:00:00]} Be7 {[%emt 0:00:00]} 6. d3 {[%emt 0:00:00]} b5 {[%emt 0:00:00]} 7. Bb3 {[%emt 0:00:00]} d6 {[%emt 0:02:30]} 8. a4 {[%emt 0:00:30]} Bd7 {[%emt 0:00:30]} 9. Bd2 {[%emt 0:00:00] C84: Closed Ruy Lopez: Unusual White 6th moves.} O-O {[%emt 0:07:30] [#]} 10. h3 $146 {[%emt 0:01:00]} ({Predecessor:} 10. Na3 Bg4 11. c3 b4 12. Nc4 Rb8 13. Rb1 h6 14. h3 Be6 15. Re1 Re8 16. a5 bxc3 17. bxc3 {1-0 (37) Saltaev,M (2530)-Iuldachev,S (2495) Ashkhabad 1996}) 10... b4 {[%emt 0:03:30]} 11. c3 {[%emt 0:02:30] The position is equal.} Rb8 {[%emt 0:21:30]} 12. a5 {[%emt 0:01:30]} bxc3 {[%emt 0:02:30]} 13. bxc3 {[%emt 0:11:30]} Rb5 {[%emt 0:15:30]} (13... Qc8 $11) 14. Na3 $14 {[%emt 0:13:30][%cal Bb1a3,Ba3c2,Bc2b4,Bb4d5][%mdl 32]} Rxa5 {[%emt 0:01:30]} 15. c4 {[%emt 0:01:30]} Rc5 {[%emt 0:00:30]} 16. Nc2 {[%emt 0:00:30]} Qb8 {[%emt 0:12:30]} (16... Nh5 $14) 17. Ba4 $16 {[%emt 0:01:30]} Qc8 {[%emt 0:19:30]} 18. Nb4 {[%emt 0:05:30]} Nd4 {[%emt 0:17:38]} (18... Nxb4 $16 19. Bxb4 Bxa4 20. Qxa4 Nd7) 19. Bxd7 $18 {[%emt 0:07:30]} Qxd7 {[%emt 0:01:14]} 20. Rxa6 {[%emt 0:01:30]} (20. Nxa6 $6 Rc6 $16) 20... Nc6 {[%emt 0:00:46]} 21. Nd5 {[%emt 0:08:30]} Bd8 {[%emt 0:01:41]} 22. Qa4 {[%emt 0:02:30] Threatens to win with Rb1.} Nb8 {[%emt 0:00:07] [#]} 23. Be3 {[%emt 0:05:30]} Rxd5 $16 {[%emt 0:00:52]} 24. cxd5 {[%emt 0:00:30] Strongly threatening Ra8.} Nxa6 {[%emt 0:00:00]} 25. Qxa6 {[%emt 0:00:30]} Nh5 {[%emt 0:00:23]} 26. Rb1 {[%emt 0:01:30]} f5 {[%emt 0:00:18]} 27. Rb8 {[%emt 0:01:30]} Nf6 {[%emt 0:00:29]} 28. Qc4 {[%emt 0:06:30]} h6 {[%emt 0:00:25] Inhibits Ng5.} 29. Rb7 {[%emt 0:03:30]} (29. Nh4 $5 {[%cal Rh4f5]}) 29... g5 {[%emt 0:00:51]} 30. Bb6 {[%emt 0:15:49]} (30. Nd2 $14) 30... Ne8 {[%emt 0:00:13]} (30... Qc8 $11 31. Qc6 fxe4 32. dxe4 Nxe4) 31. exf5 {[%emt 0:02:18]} Qxf5 {[%emt 0:00:06]} 32. Rb8 {[%emt 0:01:08]} Qd7 {[%emt 0:01:41]} 33. Ba5 {[%emt 0:04:40]} Kg7 {[%emt 0:00:34]} 34. Nd2 {[%emt 0:05:42] White has more active pieces.} h5 {[%emt 0:00:21] White leaves nothing to chance now.} (34... Nf6 $14) 35. Qc6 {[%emt 0:03:01]} ({White should try} 35. Ne4 $16) 35... Qxc6 {[%emt 0:00:46]} 36. dxc6 {[%emt 0:00:07]} Nf6 {[%emt 0:00:01]} 37. Ne4 {[%emt 0:01:53]} Nd5 {[%emt 0:01:01] [#]} 38. Nxd6 $1 {[%emt 0:02:37][%mdl 512]} Ne7 {[%emt 0:00:09] [#]} (38... Be7 39. Rxf8) 39. Rb7 $1 {[%emt 0:00:36]} cxd6 {[%emt 0:00:43]} (39... Nd5 $16 40. Nb5 Rf7) (39... Nxc6 40. Bxc7) 40. Bxd8 $18 {[%emt 0:02:05][%mdl 64] Remove Defender} Rxd8 {[%emt 0:00:05]} 41. Rxe7+ $16 {[%emt 0:00:04][%mdl 4096] Endgame KR-KR} Kf6 {[%emt 0:01:36]} 42. Rh7 {[%emt 0:01:30]} Rc8 $2 {[%emt 0:04:30]} (42... h4 {keeps fighting.} 43. c7 Rc8) 43. Rh6+ $18 {[%emt 0:01:30]} (43. Rxh5 Kg6 44. g4 Rxc6 $14) 43... Ke7 {[%emt 0:01:30]} 44. Rxh5 {[%emt 0:00:30]} Rxc6 {[%emt 0:00:00]} 45. Rxg5 {[%emt 0:00:30]} Rc1+ {[%emt 0:00:00]} 46. Kh2 {[%emt 0:00:00]} Rc3 {[%emt 0:01:30]} 47. Rg3 {[%emt 0:01:00]} d5 {[%emt 0:00:00]} 48. h4 {[%emt 0:00:30]} d4 {[%emt 0:01:00]} 49. h5 {[%emt 0:01:30] aiming for h6.} e4 {[%emt 0:00:30]} 50. dxe4 {[%emt 0:07:30]} d3 {[%emt 0:00:30]} 51. h6 {[%emt 0:00:30] Intending h7 and mate.} d2 {[%emt 0:00:30]} 52. h7 {[%emt 0:00:30] White threatens Rg7+ and mate.} (52. Rxc3 d1=Q $11) 52... Rxg3 {[%emt 0:00:30]} 53. Kxg3 {[%emt 0:01:30] White mates.} (53. h8=R $2 {perishes.} Rd3 54. f3 d1=Q $19) 53... d1=Q {[%emt 0:03:30]} 54. h8=Q {[%emt 0:00:00] KQ-KQ} ({Stronger than} 54. h8=R Kf6 $11) 54... Qd6+ {[%emt 0:00:00]} 55. e5 {[%emt 0:03:00]} Qg6+ {[%emt 0:00:00]} 56. Kh2 {[%emt 0:00:30]} Qe4 {[%emt 0:00:30]} 57. Qf6+ {[%emt 0:01:30]} Ke8 {[%emt 0:00:00]} 58. f3 {[%emt 0:03:30]} Qe1 {[%emt 0:00:00]} 59. g4 {[%emt 0:03:30][%cal Bg2g4,Bg4g5][%mdl 32]} ({And not} 59. e6 Qg3+ 60. Kg1 Qe1+ 61. Kh2 Qg3+ 62. Kg1 Qe1+ 63. Kh2 $11) 59... Qf2+ {[%emt 0:00:30]} 60. Kh3 {[%emt 0:00:30]} Qe1 {[%emt 0:00:30]} 61. g5 {[%emt 0:01:30]} Qh1+ {[%emt 0:00:30]} 62. Kg4 {[%emt 0:00:30]} Qg2+ {[%emt 0:00:00]} 63. Kh5 {[%emt 0:00:30]} Qh3+ {[%emt 0:00:00]} 64. Kg6 {[%emt 0:00:30]} Qh1 {[%emt 0:00:30]} 65. Qf7+ {[%emt 0:00:30]} Kd8 {[%emt 0:00:30]} 66. e6 {[%emt 0:00:30][%csl Ge6][%cal Rf7d7,Be5e6,Be6e7][%mdl 32]} Qb1+ {[%emt 0:00:00]} 67. Kg7 {[%emt 0:00:30][%csl Ge6][%cal Rf7d7]} Kc8 {[%emt 0:00:00]} 68. e7 {[%emt 0:00:30][%cal Re7e8]} Qb2+ {[%emt 0:00:30]} 69. Kg8 {[%emt 0:00:00] Weighted Error Value: White=0.14 (very precise) /Black=0.44} 1-0